bitfinex-derivatives/quotes_ETHF0:USTF0_20260226
["timestamp","ask_amount","ask_price","bid_price","bid_amount"]
[1772129165852,0.57493815,1987.5,1986.6,0.53018018]
[1772129166047,0.57493815,1987.5,1986.4,0.53018018]
[1772129166448,0.57493815,1987.5,1986.4,0.25778319]
[1772129166655,0.57493815,1987.5,1986.6,0.53018018]
[1772129167251,6.84253145,1988.1,1986.6,0.53018018]
[1772129167252,0.57493815,1988.0,1986.6,0.53018018]
[1772129167451,0.57493815,1988.0,1986.8,0.53018018]
[1772129167660,0.00404145,1988.1,1987.0,0.53018018]
[1772129167863,0.5789796,1988.1,1987.0,0.53018018]
[1772129169163,0.00404145,1988.1,1987.0,0.53018018]
[1772129169467,0.57493815,1988.4,1987.3,0.25159]
[1772129169664,0.57493815,1988.4,1987.4,0.57438972]
[1772129170269,0.57858459,1988.4,1987.4,0.57438972]
[1772129175473,0.57236044,1988.3,1986.9,0.57438972]
[1772129175674,0.57236044,1988.0,1986.9,0.57438972]
[1772129176177,0.57236044,1987.8,1986.7,0.57438972]
[1772129180273,0.57236044,1987.6,1986.6,0.57438972]
[1772129180479,0.57236044,1987.4,1986.6,0.57438972]
[1772129181378,0.57236044,1987.4,1986.5,0.57438972]
[1772129182178,0.57236044,1987.2,1986.5,0.57438972]
[1772129183380,0.57236044,1987.6,1986.5,0.57438972]
[1772129184677,0.57236044,1987.6,1986.4,0.00608319]
[1772129184880,6.587,1987.7,1986.4,0.00608319]
[1772129184881,0.57236044,1987.4,1986.4,0.00608319]
[1772129185381,0.57236044,1987.2,1986.4,0.00608319]
[1772129185973,0.25161,1987.1,1986.4,0.00608319]
[1772129186180,0.57236044,1987.0,1986.4,0.00608319]
[1772129186377,0.57752115,1987.0,1986.4,0.00608319]
[1772129187378,0.57236044,1987.2,1986.4,0.58047291]
[1772129187582,0.57236044,1987.4,1986.4,0.58047291]
[1772129188582,0.57857274,1987.4,1986.4,0.58047291]
[1772129189487,0.57236044,1988.1,1986.8,0.57438972]
[1772129189680,0.57236044,1988.1,1987.0,0.57438972]
[1772129190487,0.57598437,1988.1,1987.0,0.57438972]
[1772129190784,0.57598437,1988.1,1987.1,0.57438972]
[1772129191882,0.57236044,1987.9,1986.9,0.57438972]
[1772129193284,0.57236044,1987.7,1986.7,0.57438972]
[1772129193986,0.57236044,1987.5,1986.5,10.93838972]
[1772129194386,0.25155,1987.6,1986.4,0.00608319]
[1772129194387,0.57236044,1986.9,1986.4,0.00608319]
[1772129194783,0.57236044,1986.9,1986.0,0.57438972]
[1772129195182,0.57236044,1986.9,1985.8,41.38046589]
[1772129195382,0.57236044,1986.9,1985.9,0.58046589]
[1772129195586,0.56515232,1986.7,1985.7,0.58046589]
[1772129195785,0.56956819,1986.7,1985.7,0.58689542]
[1772129196287,0.56956819,1986.7,1985.7,0.00642953]
[1772129196688,0.56515232,1986.1,1984.9,0.58046589]
[1772129197185,0.56515232,1985.9,1984.7,0.58046589]
[1772129197390,0.56515232,1985.7,1984.7,0.58046589]
[1772129197787,0.56515232,1985.7,1984.7,0.58435347]
[1772129198387,0.56515232,1985.7,1984.7,0.00388758]
[1772129198687,0.56515232,1985.5,1984.3,0.58046589]
[1772129198887,0.56515232,1985.4,1984.3,0.58046589]
[1772129199483,0.56515232,1985.4,1984.3,0.58688143]
[1772129199989,0.56515232,1985.4,1984.3,0.00641554]
[1772129200186,5.50663855,1985.3,1984.3,0.57719624]
[1772129200387,0.5368666,1985.3,1984.3,0.57719624]
[1772129201585,0.5368666,1985.3,1984.3,0.00641554]
[1772129203989,0.5368666,1985.3,1984.3,0.57719624]
[1772129204190,0.53032345,1985.2,1984.3,0.57719624]
[1772129206488,0.25839315,1985.3,1984.3,0.57719624]
[1772129206489,0.53032345,1985.0,1984.3,0.00641554]
[1772129207091,0.53032345,1985.0,1984.3,0.57719624]
[1772129209995,0.53032345,1985.2,1984.3,0.57719624]
[1772129213595,0.53032345,1985.2,1984.5,0.5707807]
[1772129213897,0.53032345,1985.1,1984.3,0.00641554]
[1772129214103,0.53032345,1984.7,1983.7,0.5707807]
[1772129214296,0.53032345,1984.5,1983.5,0.5707807]
[1772129214999,0.53032345,1984.5,1983.6,0.5707807]
[1772129216690,0.53032345,1984.3,1983.5,0.00540568]
[1772129217198,0.53032345,1984.3,1983.5,0.57618638]
[1772129218304,0.53032345,1984.1,1983.5,0.00540568]
[1772129218601,0.53032345,1983.9,1982.7,0.5707807]
[1772129218898,0.53032345,1983.7,1982.8,0.5707807]
[1772129219495,0.53457147,1983.7,1982.8,0.57732641]
[1772129219691,0.53032345,1983.3,1982.3,0.5707807]
[1772129220697,0.53032345,1983.6,1982.5,0.5707807]
[1772129221894,0.53032345,1983.6,1982.7,0.5707807]
[1772129222096,0.53032345,1983.2,1982.3,0.00458318]
[1772129222893,0.53032345,1982.6,1981.4,0.5707807]
[1772129223297,0.53032345,1982.6,1981.6,0.5707807]
[1772129223903,0.53032345,1982.6,1981.6,0.57449167]
[1772129224499,0.53032345,1982.4,1981.6,0.00371097]
[1772129224999,0.53032345,1982.6,1981.7,0.5707807]
[1772129225408,0.53032345,1983.2,1981.8,6.7770307]
[1772129225698,0.53032345,1983.2,1982.0,0.5707807]
[1772129226501,0.53032345,1983.6,1982.1,0.5707807]
[1772129226801,0.53032345,1983.6,1982.4,0.5707807]
[1772129227311,0.53032345,1983.6,1982.7,0.5707807]
[1772129227604,0.00424802,1983.7,1982.7,0.5707807]
[1772129227997,0.00424802,1983.7,1982.7,0.79773958]
[1772129228304,0.53032345,1984.2,1983.0,0.5707807]
[1772129229203,0.53443378,1984.2,1983.0,0.57713326]
[1772129229605,0.53443378,1984.2,1983.1,0.5831901]
[1772129229904,0.53443378,1984.2,1983.0,1.92534155]
[1772129229905,0.00411033,1984.2,1983.4,0.5831901]
[1772129230306,0.00411033,1984.2,1983.4,10.9021901]
[1772129230604,1.36063334,1984.4,1983.5,0.5831901]
[1772129230807,0.55496378,1984.6,1983.5,0.5831901]
[1772129231510,0.55920575,1984.6,1983.5,0.5831901]
[1772129231902,0.55920575,1984.6,1983.7,0.5831901]
[1772129232105,0.55496378,1985.3,1984.3,0.5831901]
[1772129233110,0.55907134,1985.3,1984.3,0.5831901]
[1772129233709,0.55907134,1985.3,1983.5,2.08175938]
[1772129233710,0.55496378,1984.7,1983.6,0.5831901]
[1772129234006,0.55496378,1984.7,1983.7,0.5831901]
[1772129235212,0.55496378,1985.1,1983.8,0.5831901]
[1772129237015,0.55907134,1985.3,1984.0,0.5831901]
[1772129243823,0.55496378,1985.1,1984.0,0.5831901]
[1772129245520,0.25188,1985.0,1984.0,0.5831901]
[1772129245722,0.55496378,1984.9,1984.0,0.5831901]
[1772129245923,0.55496378,1984.9,1983.8,0.5831901]
[1772129246827,0.25188,1985.0,1983.8,0.5831901]
[1772129246828,0.55496378,1984.7,1983.8,0.5831901]
[1772129247325,0.55496378,1984.7,1983.7,10.322]
[1772129247326,0.55496378,1984.5,1983.6,0.5831901]
[1772129248216,12.78661,1984.9,1983.4,0.5831901]
[1772129248217,0.55496378,1984.3,1983.4,0.5831901]
[1772129248926,0.55496378,1984.1,1983.4,0.5831901]
[1772129249227,0.55496378,1984.1,1983.2,0.5831901]
[1772129250123,0.55496378,1983.9,1983.0,0.00635256]
[1772129250429,0.55999055,1983.9,1983.0,0.58954266]
[1772129251826,0.55999055,1983.9,1983.0,0.00635256]
[1772129252027,0.55496378,1983.5,1983.0,0.00635256]
[1772129252324,0.55496378,1983.5,1982.8,0.5831901]
[1772129252727,0.55496378,1983.3,1982.6,0.5831901]
[1772129252928,6.20013,1983.8,1982.4,0.5831901]
[1772129252929,0.55496378,1983.1,1982.4,0.5831901]
[1772129253233,0.55496378,1983.1,1982.4,0.0041553]
[1772129253830,0.55496378,1982.9,1982.0,0.5831901]
[1772129254829,0.55496378,1982.9,1982.0,0.5893848]
[1772129258331,6.53028851,1983.6,1982.0,0.0061947]
[1772129258332,0.57354274,1982.7,1982.0,0.0061947]
[1772129258530,5.30699329,1982.8,1982.0,0.55483986]
[1772129258730,0.57354274,1982.9,1982.0,0.55483986]
[1772129258930,0.57354274,1983.2,1982.0,0.55483986]
[1772129259132,0.57354274,1983.6,1982.2,0.55483986]
[1772129259433,0.57354274,1983.6,1981.9,0.55483986]
[1772129259434,0.57354274,1982.9,1981.9,0.55483986]
[1772129259734,0.57354274,1982.9,1981.9,0.56116485]
[1772129259930,0.54926811,1982.7,1981.9,0.56116485]
[1772129261436,0.54926811,1982.7,1981.1,10.243]
[1772129261437,0.54926811,1982.6,1981.5,0.53430191]
[1772129261835,0.54926811,1982.6,1981.6,0.53430191]
[1772129262328,0.54926811,1982.6,1981.6,0.53792365]
[1772129262931,0.54926811,1982.8,1981.8,0.53430191]
[1772129263733,6.59,1983.0,1981.8,0.53430191]
[1772129263734,0.54926811,1983.0,1981.8,0.53430191]
[1772129263940,0.25214,1982.9,1981.8,0.53430191]
[1772129264141,0.54926811,1982.6,1981.8,0.53430191]
[1772129264337,0.54926811,1982.4,1981.6,0.53792365]
[1772129264637,0.55356401,1982.4,1981.6,0.53792365]
[1772129265341,0.54926811,1982.2,1981.6,0.00362174]
[1772129265531,0.25222,1982.3,1980.7,10.255]
[1772129265532,0.54926811,1982.0,1981.2,0.53430191]
[1772129265933,0.54926811,1981.8,1981.0,0.53430191]
[1772129266535,0.54926811,1981.8,1981.0,0.53952532]
[1772129266845,0.54926811,1981.6,1980.6,0.53430191]
[1772129267940,0.54926811,1981.6,1980.2,10.25]
[1772129267941,0.54926811,1980.8,1979.1,0.53430191]
[1772129268143,6.20817,1981.2,1977.3,10.43490426]
[1772129268144,6.2143,1979.3,1977.3,10.43490426]
[1772129268342,6.28907899,1981.3,1976.1,12.44804]
[1772129268343,6.21947,1977.6,1976.1,0.58914678]
[1772129268539,1.92317129,1978.7,1976.1,0.58914678]
[1772129268540,8.13972129,1978.6,1976.5,0.58914678]
[1772129268744,6.21655,1978.6,1976.5,0.58914678]
[1772129268943,6.21733,1978.3,1976.8,0.58914678]
[1772129269247,0.25267,1978.8,1976.5,0.22708496]
[1772129269248,0.54926811,1977.6,1976.5,0.53430191]
[1772129269444,0.54926811,1977.6,1976.9,4.31450399]
[1772129269640,6.21937,1977.7,1975.3,6.22643]
[1772129269641,0.25279,1977.9,1976.5,5.06733814]
[1772129269839,5.69148383,1977.5,1976.3,0.60498467]
[1772129270039,5.82871415,1977.6,1976.3,0.60498467]
[1772129270240,6.591,1978.2,1976.3,0.60498467]
[1772129270447,5.69148383,1978.0,1976.6,0.60498467]
[1772129270639,6.59671885,1978.6,1976.6,0.60498467]
[1772129270846,6.59671885,1978.6,1977.1,0.60498467]
[1772129271150,0.00471885,1978.6,1977.4,0.60498467]
[1772129271344,6.591,1979.5,1978.5,0.60498467]
[1772129271741,0.54158478,1979.3,1978.3,0.53430191]
[1772129272344,0.54158478,1979.3,1978.4,0.53430191]
[1772129272345,0.00459429,1979.3,1978.4,0.53430191]
[1772129272539,0.54158478,1979.8,1978.4,0.53430191]
[1772129272941,7.13258478,1980.0,1978.8,0.53430191]
[1772129273145,0.54158478,1980.5,1979.0,0.53430191]
[1772129273551,0.54926811,1980.3,1979.0,0.53430191]
[1772129273756,0.54926811,1980.1,1979.0,0.53430191]
[1772129275352,0.54926811,1979.9,1978.5,0.53430191]
[1772129275555,0.54926811,1979.7,1978.5,0.53430191]
[1772129275751,7.14126811,1979.9,1978.7,0.53430191]
[1772129276249,0.54926811,1979.8,1978.9,0.53430191]
[1772129276653,0.54926811,1979.5,1978.6,0.53430191]
[1772129277557,0.54926811,1979.5,1978.3,0.53940144]
[1772129277850,0.547239,1979.1,1978.3,0.00509953]
[1772129278053,0.547239,1978.9,1978.3,0.00509953]
[1772129278656,0.547239,1978.9,1978.0,0.53430191]
[1772129279255,0.547239,1978.7,1977.4,0.53430191]
[1772129279454,12.80715,1979.0,1977.3,40.8]
[1772129279455,7.139239,1979.0,1977.6,0.53430191]
[1772129279853,7.139239,1979.0,1977.9,0.53430191]
[1772129280056,0.54926811,1978.9,1977.9,0.53430191]
[1772129280254,0.54926811,1978.8,1977.9,0.53430191]
[1772129280658,0.25273,1978.4,1977.4,0.53866121]
[1772129280958,0.54926811,1978.2,1977.4,0.53866121]
[1772129281259,7.14226811,1978.3,1977.5,0.53430191]
[1772129281654,7.14226811,1978.3,1977.5,3.20073964]
[1772129282154,0.80202811,1978.1,1977.4,0.0043593]
[1772129282355,0.54926811,1977.8,1976.9,0.53430191]
[1772129282555,0.54926811,1977.6,1976.9,0.53430191]
[1772129282757,0.54926811,1977.6,1976.7,0.53430191]
[1772129283057,0.54926811,1977.4,1976.3,0.30702864]
[1772129283254,0.55568589,1977.4,1976.4,0.53430191]
[1772129283655,0.00641778,1977.4,1976.6,0.53430191]
[1772129284254,0.54926811,1977.8,1976.8,0.53430191]
[1772129284455,0.54926811,1977.8,1976.4,0.10235323]
[1772129284456,0.54926811,1978.0,1977.3,5.06733814]
[1772129284756,5.29563885,1977.7,1976.6,0.53430191]
[1772129284958,6.593,1978.0,1976.6,0.53430191]
[1772129285159,6.593,1978.0,1976.9,0.53430191]
[1772129285354,0.00628193,1978.0,1976.9,0.53430191]
[1772129285751,0.00628193,1978.0,1977.3,0.53430191]
[1772129286255,0.80198811,1978.4,1977.7,2.66643773]
[1772129286458,0.80198811,1978.4,1977.5,0.53430191]
[1772129286459,0.25274,1978.2,1977.5,0.53430191]
[1772129286658,0.54926811,1978.1,1977.5,2.66643773]
[1772129286859,0.54926811,1978.1,1977.2,0.53430191]
[1772129287059,0.25274,1978.2,1977.2,0.53430191]
[1772129287258,0.25687934,1978.2,1977.5,0.53430191]
[1772129287663,0.00413934,1978.2,1977.8,2.66643773]
[1772129287856,0.80194811,1978.7,1977.9,0.53430191]
[1772129288062,0.25268,1978.7,1977.9,0.53430191]
[1772129288262,0.25268,1978.7,1978.1,0.53430191]
[1772129288655,0.25268,1978.7,1978.1,3.20073964]
[1772129288867,0.2584919,1978.7,1978.1,3.20073964]
[1772129289358,0.2584919,1978.7,1978.3,0.53430191]
[1772129289564,0.0058119,1978.7,1978.3,0.53430191]
[1772129290064,6.593,1978.8,1978.5,2.66643773]
[1772129290258,6.593,1978.8,1978.3,0.53430191]
[1772129290559,6.593,1978.8,1978.5,3.23002729]
[1772129290760,6.594,1979.1,1978.5,0.56358956]
[1772129290961,6.60028302,1979.1,1978.5,0.56358956]
[1772129291263,0.25264,1979.0,1978.3,0.56358956]
[1772129291460,0.82013661,1979.0,1978.3,0.56358956]
[1772129291863,0.82013661,1979.0,1978.5,0.56358956]
[1772129291864,0.25264,1979.0,1978.5,0.56358956]
[1772129292063,6.60028302,1979.1,1978.5,0.56358956]
[1772129292459,6.60028302,1979.1,1978.8,0.56358956]
[1772129292656,6.60028302,1979.1,1978.8,0.56937185]
[1772129292962,6.60028302,1979.1,1978.9,2.66643773]
[1772129293361,6.60028302,1979.1,1979.0,2.66643773]
[1772129293563,6.50572764,1979.1,1978.4,0.56358956]
[1772129293765,0.57158271,1979.0,1978.4,0.56358956]
[1772129294167,0.57158271,1979.0,1978.4,2.70711729]
[1772129294366,0.57158271,1979.0,1978.4,0.56358956]
[1772129294568,0.57158271,1979.0,1978.5,2.14352773]
[1772129294966,0.25891302,1979.1,1978.5,0.56358956]
[1772129295565,0.25891302,1979.1,1978.8,2.14352773]
[1772129295968,0.25891302,1979.1,1978.5,0.56358956]
[1772129296169,0.82918449,1979.1,1978.6,2.14352773]
[1772129296469,0.82918449,1979.1,1978.5,0.56358956]
[1772129296671,0.57027147,1979.0,1978.6,2.14352773]
[1772129297172,0.57027147,1979.8,1979.0,0.56358956]
[1772129297570,0.57027147,1979.8,1979.2,2.14352773]
[1772129297771,6.84655,1979.7,1979.0,0.56358956]
[1772129297971,0.81822548,1979.5,1978.5,0.56358956]
[1772129298164,0.81824548,1979.3,1978.6,0.56358956]
[1772129298370,6.594,1979.2,1978.6,0.56358956]
[1772129298664,6.594,1979.2,1978.8,0.56358956]
[1772129299560,6.594,1979.2,1979.0,2.14352773]
[1772129299768,0.00566067,1979.7,1978.8,0.56358956]
[1772129300069,0.56555741,1978.6,1977.8,0.56358956]
[1772129300263,11.56551905,1979.2,1976.7,0.56358956]
[1772129300264,0.58343832,1978.4,1976.7,0.56358956]
[1772129300469,6.21514,1979.0,1977.1,0.56358956]
[1772129300470,0.58343832,1978.3,1977.1,0.56358956]
[1772129300671,6.595,1978.2,1977.1,0.56358956]
[1772129300966,6.60088764,1978.2,1977.1,0.56944701]
[1772129301162,0.00588764,1978.2,1977.1,0.56944701]
[1772129301361,0.25267,1978.8,1977.3,0.56358956]
[1772129301362,6.595,1978.7,1977.3,0.56358956]
[1772129301567,0.58343832,1978.6,1977.3,0.56358956]
[1772129302269,0.83613832,1978.5,1977.3,0.56358956]
[1772129302467,7.17843832,1978.4,1977.3,0.56358956]
[1772129302770,6.595,1978.3,1977.3,0.56358956]
[1772129302971,0.58343832,1978.4,1977.3,0.56358956]
[1772129303267,6.595,1978.4,1977.3,0.56358956]
[1772129303571,0.58343832,1978.4,1977.3,0.56358956]
[1772129303768,7.17843832,1978.4,1977.3,0.56358956]
[1772129304170,0.58343832,1978.3,1977.3,0.56358956]
[1772129304874,0.58343832,1978.1,1977.3,0.56358956]
[1772129305074,0.58343832,1977.9,1977.1,0.56944701]
[1772129305367,0.58343832,1977.7,1977.1,0.56944701]
[1772129305563,0.25279,1977.8,1977.1,0.56944701]
[1772129305769,6.595,1977.9,1977.1,0.56944701]
[1772129306674,7.17843832,1977.9,1977.1,0.56944701]
[1772129306871,0.58343832,1977.8,1977.1,0.56944701]
[1772129307574,0.25288,1977.1,1976.2,0.56358956]
[1772129307772,6.2201,1977.4,1976.2,0.56358956]
[1772129307773,0.58343832,1976.9,1976.2,0.56358956]
[1772129307969,0.58343832,1977.7,1976.4,0.56358956]
[1772129308173,0.58343832,1977.0,1976.3,0.66596351]
[1772129308474,5.75072831,1977.3,1976.4,0.1023377]
[1772129308672,0.58343832,1977.8,1976.5,0.56358956]
[1772129309673,0.58946984,1977.8,1976.6,0.56358956]
[1772129310477,0.00603152,1977.8,1976.6,0.56358956]
[1772129311073,0.00603152,1977.8,1976.8,0.56358956]
[1772129311273,0.58343832,1978.4,1977.0,0.56358956]
[1772129311981,0.58343832,1978.9,1977.2,0.56358956]
[1772129312279,6.596,1978.7,1977.2,0.56358956]
[1772129312481,0.58343832,1978.3,1977.2,0.56358956]
[1772129312684,0.58343832,1977.2,1976.4,0.57011425]
[1772129312884,0.58343832,1977.0,1976.4,0.57011425]
[1772129313094,0.58343832,1977.0,1975.4,6.596]
[1772129313095,0.58343832,1976.8,1976.1,0.56358956]
[1772129313588,0.58343832,1976.6,1975.9,0.56358956]
[1772129314284,12.82265952,1977.2,1976.1,0.56358956]
[1772129314285,0.58343832,1976.9,1976.1,0.56358956]
[1772129314683,0.83632832,1977.1,1976.2,1.02358412]
[1772129314887,0.58343832,1976.9,1976.2,1.58717368]
[1772129315091,0.58343832,1976.9,1976.2,0.56358956]
[1772129315290,0.58343832,1976.9,1976.3,1.02361003]
[1772129315490,0.58343832,1976.9,1976.2,0.56358956]
[1772129315690,0.53199766,1976.7,1975.9,0.55985042]
[1772129316094,0.53199766,1976.7,1976.0,2.09136904]
[1772129316293,0.53199766,1976.7,1976.1,0.55575977]
[1772129316590,0.53199766,1976.7,1976.0,1.53560927]
[1772129316790,0.53199766,1976.5,1975.9,0.00409065]
[1772129317288,0.53199766,1976.3,1975.2,0.55575977]
[1772129317596,0.25305,1975.9,1974.5,0.55575977]
[1772129317788,5.83740847,1976.2,1975.4,0.58947826]
[1772129318090,8.81508872,1977.6,1975.6,0.55575977]
[1772129318091,0.53781718,1977.2,1975.6,0.55575977]
[1772129318489,0.53781718,1977.2,1975.6,0.56137865]
[1772129318994,0.53199766,1976.8,1975.8,0.55575977]
[1772129319389,0.53199766,1976.8,1975.9,0.76057501]
[1772129319891,0.53199766,1976.8,1975.9,0.55575977]
[1772129320285,0.53199766,1976.8,1975.9,0.58287506]
[1772129321090,0.25291,1976.9,1975.9,0.58287506]
[1772129322196,7.13935424,1977.1,1975.9,0.58287506]
[1772129322593,0.54335424,1977.0,1975.9,0.58287506]
[1772129323087,0.54335424,1976.9,1975.9,0.58287506]
[1772129324294,6.22264,1976.6,1975.8,1.21088919]
[1772129324595,5.34155879,1976.5,1975.6,0.58849394]
[1772129324992,0.54335424,1976.7,1975.7,1.53603166]
[1772129325389,0.54335424,1976.5,1975.7,1.53603166]
[1772129325589,0.25295,1976.6,1975.8,0.58287506]
[1772129325791,0.79624424,1977.1,1975.8,0.58287506]
[1772129326594,0.00581952,1977.2,1975.8,0.58287506]
[1772129326790,0.00581952,1977.2,1976.0,0.58287506]
[1772129327401,0.54917376,1977.2,1976.0,0.58287506]
[1772129327701,0.54335424,1977.1,1976.0,0.58287506]
[1772129327996,0.54335424,1976.3,1975.6,0.00561888]
[1772129328294,6.22207,1976.8,1975.0,0.58287506]
[1772129328295,0.54335424,1976.1,1975.0,0.58287506]
[1772129328500,7.14035424,1976.1,1975.0,0.58287506]
[1772129328696,12.85964268,1976.4,1975.0,0.58287506]
[1772129328893,7.14035424,1976.4,1975.0,0.58287506]
[1772129329095,0.25296,1976.5,1975.0,0.58883688]
[1772129329295,0.54335424,1976.4,1975.2,0.58287506]
[1772129329901,0.54335424,1976.4,1975.4,0.58287506]
[1772129330400,6.21976,1977.6,1975.5,0.58287506]
[1772129330401,0.79625424,1977.0,1975.5,0.58287506]
[1772129330597,0.2529,1977.0,1975.6,0.58287506]
[1772129331100,0.2529,1977.0,1975.8,0.58287506]
[1772129331704,0.2529,1977.0,1976.0,0.58287506]
[1772129332100,0.79625424,1977.0,1976.0,0.58287506]
[1772129332394,0.54335424,1976.9,1976.0,0.58287506]
[1772129332596,0.79627424,1976.8,1976.0,0.58287506]
[1772129333796,0.79630424,1976.6,1975.7,0.89010569]
[1772129333997,0.79624424,1977.1,1975.8,0.58287506]
[1772129334401,0.79624424,1977.1,1976.0,0.58287506]
[1772129335202,0.79626424,1976.9,1976.0,0.58287506]
[1772129335403,0.54335424,1976.8,1976.0,0.58287506]
[1772129335602,0.25293,1976.7,1976.0,0.58287506]
[1772129335803,0.79628424,1976.7,1976.0,0.58287506]
[1772129336505,0.25293,1976.7,1976.1,0.99246409]
[1772129336905,0.25293,1976.7,1976.1,0.58287506]
[1772129337799,0.54335424,1977.0,1976.1,0.58287506]
[1772129338512,6.85669952,1977.2,1976.1,0.58287506]
[1772129338714,7.40005376,1977.2,1976.1,0.58287506]
[1772129339210,0.2529,1977.0,1976.1,0.58287506]
[1772129339505,0.79625424,1977.0,1976.1,0.58287506]
[1772129340200,4.08226363,1977.6,1976.1,0.58287506]
[1772129340401,6.21756,1978.3,1976.8,0.58287506]
[1772129340402,0.25275,1978.2,1976.8,0.58287506]
[1772129340605,0.54335424,1978.5,1977.0,0.58287506]
[1772129340803,0.54335424,1978.5,1977.2,0.58287506]
[1772129341110,0.54335424,1978.3,1977.2,0.58287506]
[1772129341310,0.5477827,1978.3,1977.2,0.58751144]
[1772129341512,0.00442846,1978.3,1977.2,0.58751144]
[1772129341707,0.54335424,1978.8,1977.4,0.58287506]
[1772129341909,0.54335424,1978.6,1977.6,0.58287506]
[1772129342214,0.79605424,1978.5,1977.6,0.58287506]
[1772129342406,0.79605424,1978.5,1977.2,0.00463638]
[1772129342407,0.54335424,1978.2,1977.3,0.58287506]
[1772129342606,0.54901721,1978.2,1977.3,0.58287506]
[1772129343411,0.00566297,1978.2,1977.3,0.58287506]
[1772129343905,0.00566297,1978.2,1977.5,0.58287506]
[1772129344101,0.25267,1978.8,1977.5,0.58287506]
[1772129344308,6.18255909,1979.4,1977.9,0.58287506]
[1772129344309,0.54335424,1979.4,1977.9,0.58287506]
[1772129344505,0.54335424,1979.4,1978.1,0.58287506]
[1772129345107,0.00429787,1979.4,1978.3,0.58287506]
[1772129345314,0.54335424,1980.1,1978.5,0.58287506]
[1772129345611,1.89730762,1980.4,1978.7,0.58287506]
[1772129345804,1.89730762,1980.4,1978.9,0.58287506]
[1772129346106,1.89730762,1980.4,1979.1,0.58287506]
[1772129346312,0.54335424,1980.3,1979.1,0.58881127]
[1772129346506,1.35749938,1980.4,1979.1,0.58881127]
[1772129346705,1.35749938,1980.4,1979.3,0.58287506]
[1772129346905,0.54335424,1981.3,1979.7,0.58287506]
[1772129347104,6.20701,1981.6,1979.4,0.641]
[1772129347105,0.54335424,1981.1,1979.9,0.58287506]
[1772129347504,0.25229,1981.8,1979.9,0.58287506]
[1772129347505,0.54335424,1981.7,1979.9,0.58287506]
[1772129347912,0.54335424,1981.5,1979.9,0.58287506]
[1772129348115,0.54335424,1981.1,1979.9,0.58287506]
[1772129348615,0.54335424,1981.3,1979.9,0.58287506]
[1772129349508,0.57550608,1981.2,1980.1,0.58287506]
[1772129349707,0.57550608,1980.9,1979.6,0.5318971]
[1772129349910,0.57550608,1980.9,1979.3,0.5318971]
[1772129349911,0.57550608,1980.3,1979.3,0.5318971]
[1772129350216,0.58064617,1980.3,1979.3,0.5318971]
[1772129350413,0.00514009,1980.3,1979.3,0.5318971]
[1772129351112,0.58064617,1980.3,1979.3,0.5318971]
[1772129351313,0.57550608,1980.1,1979.0,0.5318971]
[1772129351614,0.57550608,1979.9,1978.8,0.5318971]
[1772129352113,0.57550608,1979.7,1978.8,0.5318971]
[1772129352515,0.57550608,1979.7,1978.8,0.003605]
[1772129353517,0.57550608,1979.5,1978.7,2.03838871]
[1772129353713,0.57550608,1979.3,1978.7,1.15734448]
[1772129354518,0.57550608,1979.3,1978.7,1.16218695]
[1772129356520,0.57550608,1979.1,1978.7,0.00484247]
[1772129356715,0.25255,1979.7,1978.7,0.59365515]
[1772129357112,6.85249,1980.2,1978.7,0.59365515]
[1772129357520,6.85249,1980.2,1978.9,0.58881268]
[1772129357716,0.25251,1980.0,1978.9,0.58881268]
[1772129358418,6.46447,1980.0,1978.9,0.58881268]
[1772129358619,0.25251,1980.0,1978.9,0.58881268]
[1772129358820,6.46446,1980.0,1978.9,0.58881268]
[1772129359009,0.25257,1979.6,1978.7,0.59367495]
[1772129359414,0.25251,1980.1,1978.7,0.59367495]
[1772129359616,0.25780718,1980.1,1978.7,0.59367495]
[1772129359922,0.00529718,1979.8,1978.7,0.59367495]
[1772129360118,0.00529718,1979.8,1978.7,0.00484247]
[1772129360119,0.00529718,1979.4,1978.7,0.00484247]
[1772129360523,0.25789718,1979.3,1978.7,0.00484247]
[1772129360814,0.25792718,1979.1,1978.7,0.00484247]
[1772129361020,0.25792718,1979.1,1978.4,0.58616409]
[1772129361221,0.00529718,1979.0,1978.1,0.58616409]
[1772129361815,6.85523699,1979.6,1978.1,0.58616409]
[1772129362011,0.25523699,1979.6,1978.2,0.58747918]
[1772129362214,0.25257,1979.6,1978.4,0.58747918]
[1772129362618,0.25523699,1979.6,1978.5,0.58747918]
[1772129363218,0.25257,1979.6,1978.5,0.58747918]
[1772129363614,0.26105861,1980.1,1978.5,0.58747918]
[1772129363817,0.26107861,1979.9,1978.5,0.58747918]
[1772129364219,0.00854861,1979.6,1978.5,0.58747918]
[1772129364817,0.25258,1979.5,1978.5,0.58747918]
[1772129365928,0.2526,1979.3,1978.5,0.58747918]
[1772129366121,0.25934817,1979.1,1978.2,0.58545359]
[1772129366428,0.00671817,1978.8,1978.1,0.00414912]
[1772129366727,0.25268,1978.7,1978.1,0.58960271]
[1772129366922,0.00634077,1978.8,1978.1,0.58960271]
[1772129368638,0.25263,1979.2,1978.1,0.58960271]
[1772129368929,0.0052184,1979.5,1978.1,0.58960271]
[1772129369530,0.01154982,1979.5,1978.1,0.58960271]
[1772129369730,0.00633142,1979.5,1978.1,0.58960271]
[1772129370727,0.00633142,1979.5,1978.3,0.58740709]
[1772129370928,0.25259,1979.4,1978.3,0.58740709]
[1772129372524,0.00633142,1979.5,1978.3,0.58740709]
[1772129372729,0.00633142,1979.5,1978.5,0.59087274]
[1772129373733,0.25740544,1979.9,1978.5,0.59087274]
[1772129374129,0.00486544,1979.6,1978.5,0.59087274]
[1772129374728,0.01097964,1979.6,1978.5,0.59087274]
[1772129376231,0.0061142,1979.6,1978.5,0.59087274]
[1772129376835,0.2525,1980.2,1978.7,0.58324755]
[1772129377237,0.2525,1980.2,1978.9,0.58324755]
[1772129377435,0.01151975,1980.5,1979.1,0.58324755]
[1772129377732,0.01151975,1980.5,1979.0,0.25264]
[1772129377733,0.01099056,1980.3,1979.3,0.58324755]
[1772129377936,0.01635972,1980.3,1979.3,0.58324755]
[1772129378432,0.25249,1980.2,1979.3,0.58324755]
[1772129378632,0.01635972,1980.3,1979.3,0.58324755]
[1772129378633,0.26350056,1980.0,1979.3,0.58324755]
[1772129379432,0.01099056,1979.9,1979.3,0.58324755]
[1772129379633,0.01099056,1979.9,1978.8,10.239]
[1772129379834,0.01099056,1979.9,1978.9,0.56511372]
[1772129380532,0.04729523,1979.7,1978.9,0.56511372]
[1772129381038,0.04729523,1979.5,1978.9,0.56511372]
[1772129381435,0.25256,1979.6,1978.9,0.56511372]
[1772129383437,0.04729523,1979.8,1978.9,0.56511372]
[1772129383742,0.04622789,1979.6,1978.9,0.56511372]
[1772129383940,0.25255,1979.7,1978.9,0.56511372]
[1772129384143,0.29872789,1980.1,1978.9,0.56511372]
[1772129384738,0.05159705,1980.3,1978.9,0.56511372]
[1772129384933,6.71268948,1980.2,1978.9,0.56511372]
[1772129385132,0.00536916,1980.3,1979.0,0.25264]